Cogmind - Beta 13 @@@ ROGUE MODE // 2024.04.19 @ 19:47:21 Player: DGSTER Result: Self-destructed Performance ------------- Evolutions (1) 500 Regions Visited (3) 600 Robots Destroyed (7) 35 Value Destroyed (268) 268 Prototype IDs (0) 0 Alien Tech Used (0) 0 Bonus (0) 0 TOTAL SCORE: 1403 Bonus ------- None Cogmind --------- Core Integrity 400/400 Matter 270/300 Energy 99/100 System Corruption 0% Temperature Cool (0) Movement Core (50) Location -9/Materials Parts ------- > --- POWER (1) -------- (None) > --- PROPULSION (2) --- (None) > --- UTILITY (4) ------ (None) > --- WEAPON (2) ------- Small Laser > --- INVENTORY (5) ---- Light Nuclear Core Improved Heat Sink Light Armor Plating Light Armor Plating Welding Torch Peak State ------------ > --- POWER ------------ Ion Engine > --- PROPULSION ------- Aluminum Leg Aluminum Leg > --- UTILITY ---------- Medium Storage Unit Improved Light Armor Plating > --- WEAPON ----------- EM Pulse Gun Small Laser > --- INVENTORY -------- Light Nuclear Core Improved Heat Sink Welding Torch [Rating: 9] Favorites ----------- Power Ion Engine Engine Ion Engine Power Core Light Nuclear Core Propulsion Light Treads Treads Light Treads Leg Aluminum Leg Utility Small Storage Unit Device Improved Heat Sink Storage Small Storage Unit Protection Improved Light Armor Plating Weapon EM Pulse Gun Energy Gun EM Pulse Gun Special Weapon Welding Torch Build | -11 -10 -10 -9 ------- Run | Yrd Mat Min Mat Slots Evolved 2 | . . . 2 Power . | . . . . Propulsion . | . . . . Utility 2 | . . . 2 Weapon . | . . . . Parts Attached 25 | 6 9 7 3 Power 5 | 1 2 1 1 Engine 4 | 1 2 1 . Core 1 | . . . 1 Reactor . | . . . . Propulsion 7 | 2 3 2 . Treads 5 | 2 3 . . Leg 2 | . . 2 . Wheel . | . . . . Hover . | . . . . Flight . | . . . . Utility 6 | 1 . 3 2 Device 1 | . . 1 . Storage 2 | 1 . 1 . Processor . | . . . . Hackware . | . . . . Protection 3 | . . 1 2 Artifact . | . . . . Weapon 7 | 2 4 1 . Energy Gun 6 | 2 3 1 . Energy Cannon . | . . . . Ballistic Gun . | . . . . Ballistic Cannon . | . . . . Launcher . | . . . . Special Weapon 1 | . 1 . . Impact Weapon . | . . . . Slashing Weapon . | . . . . Piercing Weapon . | . . . . Special Melee Weapon . | . . . . Unidentified Prototypes . | . . . . Parts Lost 9 | . . 9 . Power 2 | . . 2 . Propulsion 4 | . . 4 . Utility 1 | . . 1 . Weapon 2 | . . 2 . Highest Loss Streak 4 | . . 4 . To Critical Strikes . | . . . . Average Slot Usage (%) 69 | . 78 68 18 Engine 9 | . 12 8 . Treads 17 | . 26 11 . Leg 3 | . . 7 . Device 2 | . . 4 3 Storage 12 | . 14 12 . Protection 1 | . . 2 . Energy Gun 21 | . 24 20 11 Naked Turns . | . . . . Heaviest Build 24 | 14 14 24 7 Greatest Support 40 | 40 40 40 3 Greatest Overweight (x) 3 | . 1 3 2 Average Overweight (x) . | . . . . Largest Inventory Capacity 10 | 8 8 10 5 Average Capacity 7 | 6 8 8 5 Most Carried 8 | 5 8 8 5 Average Carried 3 | 2 4 4 3 Final Capacity 8 | 8 8 5 5 Final Carried 5 | 3 5 2 5 Class Distribution -------------------- 100% | Mutant Dominant Class ---------------- Mutant | -10/Materials Mutant | -10/Mines Mutant | -9/Materials Resources | -11 -10 -10 -9 ----------- Run | Yrd Mat Min Mat Matter Collected 410 | 233 27 150 . Remotely . | . . . . Salvage Created 342 | . 58 284 . Parts 16 | . 4 12 . Haulers Intercepted . | . . . . Recyclers Shooed 1 | . . 1 . Parts Field Recycled . | . . . . Retrieved Matter . | . . . . Parts Self-Destructed . | . . . . Prevented . | . . . . Kills | -11 -10 -10 -9 ------- Run | Yrd Mat Min Mat Combat Hostiles Destroyed 8 | . 2 6 . Guns 5 | . . 5 . AOE 3 | . 2 1 . Classes Destroyed 5 | . 2 3 . Tunneler 1 | . 1 . . Recycler 1 | . . 1 . Grunt 4 | . 2 2 . Demolisher 1 | . . 1 . Assembled 3 | . . 3 . Best Kill Streak 3 | . 3 2 . Combat Bots Only 2 | . 2 2 . Max Kills in Single Turn 3 | . 3 1 . Gunslinging . | . . . . Exploded 2 | . 2 1 . Melee . | . . . . Uniques/NPCs Destroyed . | . . . . Combat | -11 -10 -10 -9 -------- Run | Yrd Mat Min Mat Hostile Shots Fired 46 | . 1 45 . Missed 11 | . 1 10 . Damage Taken 965 | . 151 814 . Core 237 | . 58 179 . Absorbed by Shields . | . . . . Core Remaining (%) 52 | 100 . 5 . Volleys Fired 34 | . 1 33 . Largest 2 | . 2 2 . Hottest 80 | . 80 80 . Shots Fired 44 | . 2 42 . Gun 44 | . 2 42 . Cannon . | . . . . Launcher . | . . . . Special . | . . . . Kinetic . | . . . . Thermal 23 | . . 23 . Explosive . | . . . . Electromagnetic 21 | . 2 19 . Robot Hit Streak 7 | . 2 7 . Robot Miss Streak 4 | . . 4 . Penetration Max . | . . . . Secondary Targets 1 | . . 1 . Max Gunslinging Chain 1 | . . 1 . Shots Hit Robots 23 | . 2 21 . Core Hits 19 | . 4 15 . Critical Kills . | . . . . Critical Parts Destroyed . | . . . . Critical Strikes . | . . . . Melee Attacks . | . . . . Impact . | . . . . Slashing . | . . . . Piercing . | . . . . Sneak Attacks . | . . . . Combat Hostiles . | . . . . Follow-up Attacks . | . . . . Damage Inflicted 768 | . 301 467 . Guns 296 | . 12 284 . Cannons . | . . . . Explosions 470 | . 289 181 . Melee . | . . . . Ramming 2 | . . 2 . Kinetic . | . . . . Thermal 421 | . 124 297 . Explosive 165 | . 165 . . Electromagnetic 180 | . 12 168 . Impact . | . . . . Slashing . | . . . . Piercing . | . . . . Highest Corruption 7 | . . 7 . Average Corruption 5 | . . 5 . Corruption Purged . | . . . . Corruption Blocked . | . . . . Effects 4 | . . 4 . Message Errors 3 | . . 3 . Weapon Failures 1 | . . 1 . Overload Shots . | . . . . Overflow Damage . | . . . . Projectiles . | . . . . Explosions . | . . . . Melee . | . . . . Knockbacks . | . . . . Impact . | . . . . Kinetic . | . . . . Secondary . | . . . . Self-Inflicted Damage 154 | . 153 1 . Shots 2 | . 2 . . Rammed 1 | . . 1 . Targets Rammed 1 | . . 1 . Kicked . | . . . . Crushed . | . . . . Highest Temperature 197 | . 30 197 . Average Temperature 78 | . 21 82 . Received Heat Transfer 281 | . . 281 . Siege Activations . | . . . . Robots Corrupted . | . . . . Combat Hostiles . | . . . . Parts Fried . | . . . . Impact Corruptions . | . . . . Robots Melted . | . . . . Combat Hostiles . | . . . . Parts Melted . | . . . . Heat Transferred 575 | . 100 475 . Parts Sabotaged . | . . . . Parts Stolen . | . . . . Parts Stripped . | . . . . Power Chain Reactions 3 | . 1 2 . Alert | -11 -10 -10 -9 ------- Run | Yrd Mat Min Mat Peak Influence 170 | . 139 170 33 Initial 54 | . . 54 33 Average 65 | . 40 118 33 Maximum Alert Level . | . . . . Low Security (%) 100 | 100 100 100 100 Level 1 . | . . . . Level 2 . | . . . . Level 3 . | . . . . Level 4 . | . . . . Level 5 . | . . . . High Security . | . . . . Max Security . | . . . . Squads Dispatched . | . . . . Investigation . | . . . . Extermination . | . . . . Reinforcement . | . . . . Assault . | . . . . Garrison . | . . . . Intercept . | . . . . Searches Triggered . | . . . . Construction Impeded . | . . . . Haulers Reinforced . | . . . . Active Scanning Responses . | . . . . Cargo Convoy Interrupts . | . . . . Stealth | -11 -10 -10 -9 --------- Run | Yrd Mat Min Mat Distress Signals . | . . . . Communications Jammed . | . . . . Distress Signals . | . . . . Times Spotted 20 | . 6 12 2 Peak Tracking Total 6 | . 3 6 2 Tactical Retreats 1 | . . 1 . Traps | -11 -10 -10 -9 ------- Run | Yrd Mat Min Mat Traps Triggered 3 | . 3 . . Indirectly . | . . . . Trap Hack Attempts . | . . . . Triggered . | . . . . Disarmed . | . . . . Reprogrammed . | . . . . Reused . | . . . . Traps Extracted . | . . . . Installed . | . . . . Triggered . | . . . . Machines | -11 -10 -10 -9 ---------- Run | Yrd Mat Min Mat Machines Disabled 4 | . 3 1 . Max in Single Turn 3 | . 3 1 . Machines Repaired . | . . . . Machines Dismantled . | . . . . Machines Sabotaged . | . . . . Overloaded Fab Kills . | . . . . Hacking | -11 -10 -10 -9 --------- Run | Yrd Mat Min Mat Machines Accessed 2 | . 2 . . Terminals 2 | . 2 . . Fabricators . | . . . . Repair Stations . | . . . . Recycling Units . | . . . . Scanalyzers . | . . . . Garrison Access . | . . . . Total Hacks 4 | . 4 . . Successful 1 | . 1 . . Failed 3 | . 3 . . Catastrophic 1 | . 1 . . Database Lockouts . | . . . . Manual 1 | . 1 . . Terminals 4 | . 4 . . Fabricators . | . . . . Repair Stations . | . . . . Recycling Units . | . . . . Scanalyzers . | . . . . Garrison Access . | . . . . Terminal Hacks 1 | . 1 . . Branch Access Points 1 | . 1 . . Fabricator Hacks . | . . . . Repair Station Hacks . | . . . . Recycling Unit Hacks . | . . . . Scanalyzer . | . . . . Garrison Access Hacks . | . . . . Unauthorized Hacks . | . . . . Terminals . | . . . . Fabricators . | . . . . Repair Stations . | . . . . Recycling Units . | . . . . Scanalyzers . | . . . . Garrison Access . | . . . . Data Cores Recovered . | . . . . Used . | . . . . Hacking Detections 2 | . 2 . . Full Trace Events . | . . . . Feedback Events . | . . . . Feedback Blocked . | . . . . Robot Schematics Acquired . | . . . . Robots Built . | . . . . Authchips . | . . . . Time . | . . . . Total Robot Build Rating . | . . . . Part Schematics Acquired . | . . . . Parts Built . | . . . . Authchips . | . . . . Time . | . . . . Total Part Build Rating . | . . . . Parts Repaired . | . . . . Time . | . . . . Parts Recycled . | . . . . Recycled Matter . | . . . . Retrieved Matter . | . . . . Retrieved Components . | . . . . Parts Scanalyzed . | . . . . Part Schematics Acquired . | . . . . Parts Damaged . | . . . . Bothacking | -11 -10 -10 -9 ------------ Run | Yrd Mat Min Mat Used RIF Installer . | . . . . Robots Hacked . | . . . . Non-combat . | . . . . Combat . | . . . . Robot Hacks Applied . | . . . . Relay Couplers Released . | . . . . Fabnet Peak Effective % . | . . . . Robots Rewired . | . . . . Allies Hacked . | . . . . Hacks Repelled . | . . . . Allies | -11 -10 -10 -9 -------- Run | Yrd Mat Min Mat Total Allies . | . . . . Largest Group . | . . . . Highest-Rated Group . | . . . . Highest-Rated Ally . | . . . . Total Orders . | . . . . Ally Attacks . | . . . . Total Damage . | . . . . Kills . | . . . . Allies Corrupted . | . . . . Allies Melted . | . . . . Intel | -11 -10 -10 -9 ------- Run | Yrd Mat Min Mat Robot Analysis Total . | . . . . Derelict Logs Recovered . | . . . . Drone Launches . | . . . . Drone Recoveries . | . . . . Exploration | -11 -10 -10 -9 ------------- Run | Yrd Mat Min Mat Turns Passed 583 | 88 222 239 34 Spaces Moved 349 | 50 120 140 39 Core 122 | 5 1 77 39 Treads 211 | 45 119 47 . Legs 16 | . . 16 . Wheels . | . . . . Hover . | . . . . Flight . | . . . . Fastest Speed 50 | 50 100 50 50 Average Speed 126 | 149 159 105 67 Slowest Speed 200 | 160 160 200 150 Overloaded Moves . | . . . . Propulsion Burnouts . | . . . . Robots Hopped . | . . . . Cave-ins Triggered . | . . . . Exploration Rate (%) 16 | 5 24 32 5 Regions Visited 3 Branch Regions 1 Pre-discovered Areas . | . . . . Known Exits Taken 1 | . 1 . . Unknown Exits Taken 2 | 1 . 1 . Scrap Searched 1 | . . 1 . Spaces Dug . | . . . . Terrain Destroyed 25 | . 15 10 . Melee . | . . . . Projectile . | . . . . AOE 25 | . 15 10 . Terrain Rammed . | . . . . Walls Destroyed . | . . . . Machines Disabled . | . . . . Actions | -11 -10 -10 -9 --------- Run | Yrd Mat Min Mat Total 449 | 64 149 188 48 Wait 9 | . 9 . . Move 346 | 49 119 139 39 Hop . | . . . . Pick Up 26 | 9 10 5 2 Fast Attach . | . . . . Attach 25 | 6 9 7 3 Detach 5 | . 1 . 4 Swap . | . . . . Drop 3 | . . 3 . Fire 34 | . 1 33 . Melee . | . . . . Ram 1 | . . 1 . Kick . | . . . . Crush . | . . . . Escape Stasis . | . . . . Rewire . | . . . . Trap . | . . . . Miscellaneous . | . . . . Route ------- -11/Scrapyard -10/Materials (discovered 2 exits: *Min x2) -10/Mines -9/Materials History --------- Turn | Location | Event 2 | -11/Scrapyard | Discovered new exit (range 16) 89 | -11/Scrapyard | Entered Materials 101 | -10/Materials | Identified exit to Mines 307 | -10/Materials | Build established: Mutant 311 | -10/Materials | Entered Mines 357 | -10/Mines | Assembled infested the area 446 | -10/Mines | Lost 4 parts (1p2n1w) 460 | -10/Mines | Core integrity fell below 50% 478 | -10/Mines | Core integrity fell below 20% 499 | -10/Mines | Lost 4 parts (1p1n1u1w) 537 | -10/Mines | Discovered new exit (range 8) 550 | -10/Mines | Entered Materials 550 | -9/Materials | Evolved 2 slots: Utility x2 584 | -9/Materials | Self-destructed Last Messages --------------- 00505_ Aluminum Leg destroyed. 00506_ K-01 Serf collects debris. 00507_ K-01 Serf destroyed. 00509_ K-01 Serf collects debris. 00510_ U-05 Engineer destroyed. 00510_ R-06 Scavenger collects Terrain Scan Processor. 00511_ K-01 Serf destroyed. 00512_ Dropped Med. Storage Unit. 00513_ Slammed into R-06 Scavenger. 00515_ R-06 Scavenger destroyed. 00522_ 0QVLEGKA 8RJ2CAR0OVVP&1 00537_ EXIT=FOUND 00544_ 0ZH<6I9LXQHLC9ZTM%XE,3 ,CCW [Achievement: I Survived The Infestation] [Achievement: Close Call] PARAMETERS=UTILITY+2 LOCATION=UNKNOWN GOAL=ESCAPE 00560_ Acquired Lgt. Armor Plating. Map ----- +----------------------------------------------------+ | ??????????????????????????????????????????????? | | ??????????????????????????????????????????????? | | ??????????????????????????????????????????????? | | ??????????????????????????????????????????????? | | ??????????????????????????????????????????????? | | ??????????????????????????????????????????????? | | ??????????????????????????????????????????????? | | ??????????????????????????????????????????????? | | ??????????????????????????????????????????????? | | ??????????????????????????????????????????????? | | ??????????????????????????????????????????????? | | ??????????????????????????????????????????????? | | ??????????????????????????????????????????????? | | ??????????????????????????????????????????????? | | ??????????????????????????????????????????????? | | ?????????????????##########???????????????????? | | ?????????????????# #???????????????????? | | ?????????????????# """ #???????????????????? | | ?????????????????# """ #???????????????????? | | ?????????????????# !! """ #???????????????????? | | ?????????????????# ! #???????????????????? | | ?????????????????# """ #???????????????????? | | ?????????????????# """ #???????????????????? | | ?????????????????# """ #???????????????????? | | ?????????????????# * #???????????????????? | | ?????????????????########@###########?????????? | | ??????????? #?????????? | | ??????????? #?????????? | | ??????????? #?????????? | | ???????????? #######+#####????????? | | ???????????? """ ?????# #????????? | | ????????????? """ ?????# #????????? | | ???????????? ??? """ ?????# #????????? | | ????????????????? ?????# ! #????????? | | ????????????????? ?????# ! #????????? | | ????????????????######a ?????# ! #????????? | | ?????????????????????# ?????########????????? | | ?????????????????????# g??????????????????????? | | ?????????????????????# ??????????????????????? | | ?????????????????????/g ??????????????????????? | | ??????????????????????? ??????????????????????? | | ??????????????????????????????????????????????? | | ??????????????????????????????????????????????? | | ??????????????????????????????????????????????? | | ??????????????????????????????????????????????? | | ??????????????????????????????????????????????? | | ??????????????????????????????????????????????? | | ??????????????????????????????????????????????? | | ??????????????????????????????????????????????? | | ??????????????????????????????????????????????? | +----------------------------------------------------+ Best States ------------- Heat Dissipation 42 Energy Generation 14 Energy Capacity 250 Matter Stores 300 Matter Capacity 300 Sight Range 16 Terrain Scan Density 10 Armor Coverage 150 Evasion (%) 50 Recoil Reduction 2 Item Schematics ----------------- None Robot Schematics ------------------ None Fabricated ------------ Nothing Alien Tech Used ----------------- None Achievements -------------- Close Call I Survived The Infestation Challenges ------------ None Game ------ Seed TrackerDisruptionProtomatter Manual? 0 Play Time 00:10:02 Cumulative 13.6 hours Start 2024.04.19 @ 19:37:11 End 2024.04.19 @ 19:47:21 Sessions 1 Manual Loads 0 Difficulty Rogue Special Mode None Game No. 14 Rogue 13 Adventurer 1 Explorer 0 Win Type - Total 0 Types 0/0/0/0/0/0/0/0/0 Lore% 21 Gallery% 24 Achievement% 21 Wizard Run 0 Options --------- Layout 1 ASCII 0 Keyboard 0 Movement Numpad Keybinds 0 Fullscreen 1 Font 24/Smallcaps Map View 50x35 Zoom Use 0% Tactical HUD 1 Map Filters NONE Filters NONE Steam 1 RUN: 3613cf5b-bac5-4a8f-a4f8-90a50ef2fe54